bitfinex-derivatives/quotes_ETHF0:USTF0_20250214
["timestamp","ask_amount","ask_price","bid_price","bid_amount"]
[1739514256637,3.94779,2702.4,2702.2,0.74002]
[1739514256638,0.73999,2702.4,2702.2,0.74002]
[1739514257038,0.73999,2702.4,2702.1,3.2078]
[1739514257245,0.73999,2702.4,2702.2,0.74001]
[1739514257636,1.1571,2702.5,2702.3,0.73997]
[1739514257842,1.1571,2702.5,2702.1,3.2078]
[1739514258040,3.2078,2702.8,2702.1,3.2078]
[1739514258243,0.73988,2702.8,2702.4,3.2078]
[1739514258545,0.73991,2702.7,2702.5,1.0899]
[1739514258942,1.59,2703.0,2702.5,1.0899]
[1739514259148,0.73991,2702.7,2702.5,1.0899]
[1739514259550,1.59,2703.0,2702.5,1.0899]
[1739514260045,1.6976,2703.1,2702.5,1.0899]
[1739514260252,0.73983,2703.0,2702.8,3.2078]
[1739514260445,0.73982,2703.0,2702.8,3.2078]
[1739514260642,0.73983,2702.9,2702.8,3.2078]
[1739514264250,0.73982,2703.0,2702.8,3.2078]
[1739514264450,0.73983,2702.9,2702.8,3.2078]
[1739514265051,1.0965,2703.3,2702.8,3.2078]
[1739514265251,0.73982,2703.0,2702.8,3.2078]
[1739514266743,1.83624,2703.3,2703.0,0.73979]
[1739514266947,1.83624,2703.3,2703.1,3.7557]
[1739514267141,1.83624,2703.3,2703.1,4.3369]
[1739514267942,1.0965,2703.3,2703.1,4.3369]
[1739514268149,0.73975,2703.2,2703.1,4.3369]
[1739514272256,0.73975,2703.2,2703.1,3.2078]
[1739514275363,0.73982,2703.0,2702.8,3.94764]
[1739514276558,0.73983,2702.9,2702.8,3.94764]
[1739514277258,1.0965,2703.3,2702.8,3.94764]
[1739514277457,0.73983,2702.9,2702.8,3.2078]
[1739514283057,2.91258859,2703.2,2702.8,3.2078]
[1739514283364,0.73983,2702.9,2702.8,3.2078]
[1739514283561,2.91258859,2703.2,2702.8,3.2078]
[1739514283862,0.73982,2703.0,2702.8,3.94764]
[1739514284863,2.91258859,2703.2,2702.8,3.2078]
[1739514285067,0.73977,2703.2,2703.1,3.2078]
[1739514285460,0.73977,2703.2,2703.1,3.7617]
[1739514286766,0.73977,2703.2,2703.1,0.5539]
[1739514291363,0.73983,2702.9,2702.8,3.2078]
[1739514291771,4.76196859,2703.2,2702.7,0.5646]
[1739514291973,0.73986,2702.8,2702.7,0.5646]
[1739514294674,0.73989,2702.7,2702.6,0.5873]
[1739514296881,0.73987,2702.8,2702.6,1.3272]
[1739514297383,0.73987,2702.8,2702.6,0.5873]
[1739514297584,0.572,2702.9,2702.6,0.5873]
[1739514297784,0.73986,2702.8,2702.6,1.3272]
[1739514298083,0.73989,2702.7,2702.6,1.32721]
[1739514300385,1.589,2703.0,2702.6,0.5873]
[1739514300586,1.589,2703.0,2702.8,3.94765]
[1739514300781,0.7398,2703.0,2702.9,0.5497]
[1739514301081,0.7398,2703.0,2702.9,1.1029]
[1739514305680,2.04150349,2703.0,2702.9,1.1029]
[1739514305886,1.30170349,2703.0,2702.8,3.2078]
[1739514306186,1.27993,2702.9,2702.8,3.2078]
[1739514308082,1.30170349,2703.0,2702.8,3.2078]
[1739514308283,1.86480349,2703.2,2702.8,3.94764]
[1739514308487,0.73982,2703.0,2702.8,3.94764]
[1739514308890,1.86480349,2703.2,2702.8,3.2078]
[1739514309089,0.73983,2702.9,2702.8,3.2078]
[1739514316188,0.73986,2702.8,2702.7,0.5531]
[1739514316383,1.1374,2702.8,2702.4,3.2078]
[1739514316593,0.73994,2702.5,2702.4,4.3434]
[1739514317794,0.73994,2702.5,2702.4,3.8036]
[1739514318293,0.73994,2702.5,2702.4,3.2078]
[1739514320290,0.5892,2702.7,2702.2,0.00555453]
[1739514320489,0.74,2702.3,2702.2,0.00555453]
[1739514323901,1.2782,2702.3,2702.2,0.00555453]
[1739514326795,0.5382,2702.3,2701.7,3.2078]
[1739514327100,0.74013,2701.8,2701.7,3.2078]
[1739514327299,0.74012,2701.9,2701.7,3.2078]
[1739514327496,0.74012,2701.9,2701.7,3.94795]
[1739514327693,0.5382,2702.3,2701.7,3.2078]
[1739514327892,0.74,2702.3,2702.2,3.2078]
[1739514328093,0.74555453,2702.3,2702.2,3.2078]
[1739514329301,0.00555453,2702.3,2702.2,3.2078]
[1739514329504,0.74555453,2702.3,2702.2,3.2078]
[1739514330506,2.04771225,2702.3,2702.2,3.2078]
[1739514330706,0.74002,2702.2,2702.1,1.733]
[1739514331105,0.74002,2702.2,2702.1,3.03515772]
[1739514331401,0.00555453,2702.3,2702.2,0.74002]
[1739514331596,0.00555453,2702.3,2702.2,3.94782]
[1739514333705,0.74555453,2702.3,2702.2,3.2078]
[1739514335000,0.74008,2702.0,2701.9,3.2078]
[1739514338697,0.74007,2702.1,2701.9,3.2078]
[1739514338896,0.74007,2702.1,2702.0,1.1283]
[1739514339602,0.00555453,2702.3,2702.0,1.1283]
[1739514339804,0.74557453,2702.3,2702.2,3.2078]
[1739514340802,3.2078,2704.0,2702.2,10.8268]
[1739514341003,1.28664,2703.6,2703.5,3.2078]
[1739514341404,0.73972,2703.3,2703.2,4.368]
[1739514341599,0.73971,2703.4,2703.2,4.368]
[1739514341802,0.547,2703.6,2703.2,4.368]
[1739514342003,4.53897955,2703.5,2703.0,0.00555453]
[1739514342201,0.73978,2703.1,2703.0,0.00555453]
[1739514342597,0.73977,2703.2,2703.0,0.00555453]
[1739514342901,1.1375,2703.4,2703.0,0.00555453]
[1739514343109,0.547,2703.1,2703.0,0.00555453]
[1739514344210,1.28678,2703.1,2703.0,0.00555453]
[1739514345401,0.547,2703.1,2703.0,0.00555453]
[1739514345701,2.176,2703.1,2703.0,0.00555453]
[1739514347204,2.91578,2703.1,2703.0,0.00555453]
[1739514347707,2.176,2703.1,2703.0,0.00555453]
[1739514348505,2.91578,2703.1,2703.0,0.00555453]
[1739514349110,2.176,2703.1,2703.0,0.00555453]
[1739514349798,2.91578,2703.1,2703.0,0.00555453]
[1739514350512,2.176,2703.1,2703.0,0.00555453]
[1739514351702,2.91578,2703.1,2703.0,0.00555453]
[1739514362611,1.28678,2703.1,2703.0,0.00555453]
[1739514362919,2.90478,2703.1,2703.0,0.00555453]
[1739514364922,0.547,2703.1,2703.0,3.21335453]
[1739514365119,2.90378,2703.1,2703.0,3.21335453]
[1739514365316,2.35678,2703.1,2703.0,4.90805453]
[1739514367122,0.73975,2703.2,2703.0,5.64785453]
[1739514367517,0.73975,2703.2,2703.0,4.90805453]
[1739514367919,0.73978,2703.1,2703.0,4.90805453]
[1739514368518,2.1791,2703.3,2703.0,4.90805453]
[1739514368519,0.73977,2703.2,2703.0,4.90805453]
[1739514368722,2.1791,2703.3,2703.0,4.90805453]
[1739514369022,0.73978,2703.1,2703.0,4.90805453]
[1739514374633,0.73978,2703.1,2703.0,3.21335453]
[1739514375124,0.73978,2703.1,2703.0,0.00555453]
[1739514378529,2.35578,2703.1,2703.0,0.00555453]
[1739514382029,1.616,2703.1,2703.0,3.21335453]
[1739514382231,4.533,2703.2,2703.0,3.95315453]
[1739514382433,2.916,2703.2,2703.1,1.30228]
[1739514382633,2.916,2703.2,2703.1,2.39908]
[1739514382832,5.26665955,2703.5,2703.1,2.39908]
[1739514383030,0.7397,2703.4,2703.1,2.39908]
[1739514383225,1.618,2703.5,2703.1,1.6593]
[1739514383732,0.73971,2703.4,2703.1,2.39906]
[1739514385938,0.73972,2703.3,2703.1,2.39906]
[1739514391335,1.1627,2703.7,2703.1,1.6593]
[1739514391537,0.73964,2703.6,2703.5,3.2078]
[1739514394033,2.1923,2703.7,2703.5,3.2078]
[1739514394232,2.93191,2703.7,2703.6,1.0828]
[1739514398338,1.32091,2703.7,2703.6,1.0828]
[1739514399349,0.73961,2703.7,2703.6,1.0828]
[1739514407849,2.04054856,2703.7,2703.6,1.0828]
[1739514409456,2.04054856,2703.7,2703.6,5.03024]
[1739514411655,2.04054856,2703.7,2703.6,4.2906]
[1739514413460,2.04054856,2703.7,2703.6,5.03024]
[1739514413652,2.04054856,2703.7,2703.6,4.2906]
[1739514414247,1.84263856,2703.9,2703.6,4.2906]
[1739514414553,0.7396,2703.8,2703.6,5.03023]
[1739514415152,0.7396,2703.8,2703.6,4.2906]
[1739514415353,0.7396,2703.8,2703.6,5.03022]
[1739514416156,0.7396,2703.8,2703.6,5.03023]
[1739514416755,0.73961,2703.7,2703.6,4.2906]
[1739514417951,2.04054856,2703.7,2703.6,4.2906]
[1739514418258,1.30093856,2703.7,2703.6,5.03024]
[1739514419157,2.04054856,2703.7,2703.6,4.2906]
[1739514419758,2.04054856,2703.7,2703.6,5.03024]
[1739514419956,1.30093856,2703.7,2703.6,5.03024]
[1739514420157,2.04054856,2703.7,2703.6,4.2906]
[1739514421458,2.04054856,2703.7,2703.6,4.31703337]
[1739514421761,1.30093856,2703.7,2703.6,5.05667337]
[1739514421961,2.04054856,2703.7,2703.6,5.05667337]
[1739514422457,2.04054856,2703.7,2703.6,5.08150906]
[1739514422656,2.04054856,2703.7,2703.6,4.34186906]
[1739514422857,2.04054856,2703.7,2703.6,5.08150906]
[1739514423348,1.30093856,2703.7,2703.6,5.08150906]
[1739514427363,2.04054856,2703.7,2703.6,5.08150906]
[1739514427561,1.30093856,2703.7,2703.6,5.08150906]
[1739514428863,2.04054856,2703.7,2703.6,3.25906906]
[1739514430057,1.30093856,2703.7,2703.6,3.25906906]
[1739514430263,1.30093856,2703.7,2703.6,3.99870906]
[1739514430667,1.30093856,2703.7,2703.6,3.25906906]
[1739514430964,2.04054856,2703.7,2703.6,3.25906906]
[1739514438181,3.63054856,2703.7,2703.6,0.05126906]
[1739514439483,2.89093856,2703.7,2703.3,3.2078]
[1739514439782,2.04062856,2703.4,2703.3,3.2078]
[1739514440990,3.34156712,2703.4,2703.3,3.2078]
[1739514441486,2.04062856,2703.4,2703.3,3.2078]
[1739514444379,1.30093856,2703.4,2703.0,0.00555453]
[1739514444586,2.32972,2703.3,2703.2,3.2078]
[1739514444783,0.73978,2703.1,2703.0,0.00555453]
[1739514445086,2.04071856,2703.1,2703.0,0.00555453]
[1739514445581,2.58611856,2703.1,2703.0,0.00555453]
[1739514448887,1.84633856,2703.1,2702.5,3.2078]
[1739514449084,2.04084856,2702.6,2702.5,3.2078]
[1739514449288,3.63084856,2702.6,2702.5,3.2078]
[1739514451391,0.73997,2702.4,2702.3,1.13655453]
[1739514451580,3.34184712,2702.4,2702.3,0.00555453]
[1739514452581,1.85,2702.3,2701.7,0.5566]
[1739514452785,1.30093856,2701.8,2701.6,3.7585]
[1739514452988,0.74021,2701.5,2701.4,1.146]
[1739514453191,2.04114856,2701.5,2701.4,1.146]
[1739514453388,0.74032,2701.1,2701.0,3.2078]
[1739514453594,2.04125856,2701.1,2701.0,3.2078]
[1739514455885,0.74032,2701.1,2701.0,3.2078]
[1739514467394,0.7403,2701.2,2701.0,3.2078]
[1739514467792,0.7403,2701.2,2701.1,0.5622]
[1739514473897,0.00555453,2701.3,2701.1,0.5622]
[1739514474098,0.74584453,2701.3,2701.2,0.5759]
[1739514480605,0.00555453,2701.3,2701.2,1.3162]
[1739514480807,0.00555453,2701.3,2701.2,4.2522]
[1739514481511,0.74582453,2701.3,2701.2,3.5119]
[1739514482413,0.00555453,2701.3,2701.2,3.5119]
[1739514482711,0.00555453,2701.3,2701.2,4.2522]
[1739514483913,0.00555453,2701.3,2701.2,1.3162]
[1739514488406,0.00555453,2701.3,2701.2,0.5759]
[1739514488618,0.00555453,2701.3,2701.2,1.3162]
[1739514489818,0.00555453,2701.3,2701.2,4.2522]
[1739514492914,0.5392,2701.8,2701.2,4.2522]
[1739514492915,0.5392,2701.8,2701.2,9.5119]
[1739514493112,0.5582,2702.1,2701.8,0.74011]
[1739514493319,0.74009,2702.0,2701.9,3.04491615]
[1739514493816,1.29826,2702.1,2701.9,3.78500615]
[1739514494121,0.5582,2702.1,2702.0,3.2078]
[1739514494721,0.74003,2702.2,2702.0,3.94788]
[1739514495225,0.59405453,2702.3,2702.0,3.2078]
[1739514495420,0.74002,2702.2,2702.0,3.94787]
[1739514495619,0.59405453,2702.3,2702.0,3.2078]
[1739514495924,0.74005,2702.1,2702.0,3.2078]
[1739514500624,0.74005,2702.1,2702.0,2.3129]
[1739514500928,10.75972545,2702.1,2701.3,3.2078]
[1739514501122,0.74024,2701.4,2701.3,3.2078]
[1739514501923,0.5641,2701.6,2701.3,3.2078]
[1739514502128,4.20112,2701.9,2701.5,0.7402]
[1739514502329,4.20112,2701.9,2701.7,3.2078]
[1739514502524,0.74013,2701.8,2701.7,3.2078]
[1739514503834,1.33403,2701.8,2701.7,3.2078]
[1739514507323,1.90743,2701.8,2701.7,3.2078]
[1739514509026,1.1673,2701.8,2701.7,3.2078]
[1739514509227,1.90743,2701.8,2701.7,3.2078]
[1739514509928,1.1673,2701.8,2701.7,3.2078]
[1739514510825,0.5939,2701.8,2701.7,3.2078]
[1739514511225,1.33403,2701.8,2701.7,3.2078]
[1739514512020,0.5939,2701.8,2701.7,3.2078]
[1739514512524,1.33403,2701.8,2701.7,3.2078]
[1739514515135,0.74013,2701.8,2701.7,3.2078]
[1739514515333,0.545,2701.9,2701.7,3.2078]
[1739514515630,0.74013,2701.8,2701.7,3.2078]
[1739514522430,0.74012,2701.9,2701.7,3.94794]
[1739514522637,0.74013,2701.8,2701.7,3.2078]
[1739514524042,0.74013,2701.9,2701.7,3.94796]
[1739514524236,0.74013,2701.9,2701.8,0.5803]
[1739514532142,0.74024,2701.5,2701.4,3.2078]
[1739514533645,0.74038,2700.9,2700.8,3.21335453]
[1739514534245,2.44864,2701.1,2700.8,3.21335453]
[1739514534442,1.87624,2701.1,2700.8,3.21335453]
[1739514534644,1.87624,2701.1,2700.9,0.5419]
[1739514534942,1.591,2701.2,2700.9,0.5419]
[1739514535149,1.591,2701.2,2701.1,3.2078]
[1739514535749,2.3313,2701.2,2701.1,3.2078]
[1739514536851,0.74032,2701.1,2701.0,0.5384]
[1739514539247,0.74028,2701.3,2701.0,0.5384]
[1739514539448,0.74028,2701.3,2701.1,3.2078]
[1739514540247,0.74025,2701.4,2701.1,3.94811]
[1739514540651,0.74028,2701.3,2701.1,3.2078]
[1739514540846,1.591,2701.5,2701.1,3.2078]
[1739514541041,0.7403,2701.2,2701.1,3.8039]
[1739514541256,1.591,2701.5,2701.1,3.8039]
[1739514541448,0.74029,2701.3,2701.1,3.8039]
[1739514542147,1.591,2701.5,2701.1,3.8039]
[1739514542346,1.591,2701.5,2701.2,0.74028]
[1739514542552,0.74024,2701.4,2701.3,0.5544]
[1739514543156,1.6738,2701.7,2701.3,0.5544]
[1739514543353,0.74023,2701.5,2701.4,3.7742]
[1739514543750,4.61983545,2701.9,2701.4,3.7742]
[1739514543951,0.74021,2701.5,2701.4,3.2078]
[1739514544249,0.74026,2701.4,2701.1,3.94811]
[1739514544451,0.74026,2701.4,2701.2,1.1323]
[1739514544846,0.74023,2701.5,2701.3,0.5966]
[1739514545042,0.74023,2701.5,2701.4,3.2078]
[1739514548059,1.83793,2701.5,2701.4,3.2078]
[1739514550758,1.83793,2701.5,2701.2,0.5664]
[1739514550759,0.74027,2701.3,2701.2,0.5664]
[1739514551759,0.5577,2701.4,2701.0,4.3941]
[1739514551955,0.74032,2701.1,2701.0,3.7974]
[1739514552257,0.74032,2701.1,2701.0,3.2078]
[1739514552655,1.86012,2701.1,2701.0,3.2078]
[1739514554862,0.74032,2701.1,2701.0,3.2078]
[1739514555558,0.74032,2701.1,2701.0,3.8022]
[1739514558566,0.74032,2701.1,2701.0,3.2078]
[1739514558959,2.1793,2701.2,2701.0,3.2078]
[1739514559159,0.74035,2701.0,2700.9,1.1398]
[1739514560166,0.74035,2701.0,2700.9,0.5589]
[1739514560468,0.74038,2700.9,2700.8,0.00555453]
[1739514560662,1.92498,2700.9,2700.8,0.00555453]
[1739514567369,1.33648,2700.9,2700.8,0.00555453]
[1739514567571,0.74038,2700.9,2700.8,0.00555453]
[1739514578876,1.591,2701.0,2700.8,0.00555453]
[1739514579076,0.74034,2701.1,2700.9,0.74038]
[1739514579276,2.33134,2701.1,2701.0,1.1694]
[1739514587786,2.33134,2701.1,2701.0,0.578]
[1739514587986,1.591,2701.1,2700.8,0.00555453]
[1739514588182,0.74038,2700.9,2700.8,0.00555453]
[1739514593588,2.04410307,2700.9,2700.8,0.00555453]
[1739514602303,1.30372307,2700.9,2700.8,0.00555453]
[1739514602503,2.04410307,2700.9,2700.8,0.00555453]
[1739514602704,2.59290307,2700.9,2700.8,0.00555453]
[1739514607614,3.89662614,2700.9,2700.8,0.00555453]
[1739514607809,3.89662614,2700.9,2700.5,0.5806]
[1739514607810,9.15624614,2700.9,2700.4,3.2078]
[1739514608005,0.7406,2700.1,2700.0,4.3727]
[1739514608205,1.30372307,2700.1,2700.0,4.3727]
[1739514608808,1.30372307,2700.1,2700.0,1.1649]
[1739514609115,1.30372307,2700.1,2700.0,4.3727]
[1739514609613,0.74058,2700.2,2700.0,4.3727]
[1739514610112,2.33710453,2700.3,2700.0,5.11331]
[1739514610817,0.00555453,2700.3,2700.0,4.3727]
[1739514611111,0.74612453,2700.3,2700.1,0.7406]
[1739514611410,0.00555453,2700.3,2700.2,1.30077]
[1739514611608,2.9142415,2700.7,2700.2,1.30077]
[1739514611609,1.591,2700.6,2700.5,0.74048]
[1739514611803,1.591,2700.9,2700.5,3.2078]
[1739514612004,0.74044,2700.7,2700.6,0.5602]
[1739514612901,0.00555453,2700.9,2700.6,0.5602]
[1739514613209,0.74043,2700.7,2700.6,0.5602]
[1739514614113,0.00555453,2700.9,2700.6,0.5602]
[1739514614413,0.74595453,2700.9,2700.6,1.30066]
[1739514614812,0.74595453,2700.9,2700.7,0.5707]
[1739514615213,0.00555453,2700.9,2700.8,3.2078]
[1739514617114,0.00555453,2700.9,2700.8,3.94821]
[1739514617407,0.00555453,2700.9,2700.8,3.2078]
[1739514617613,0.00555453,2700.9,2700.8,3.94821]
[1739514618708,0.00555453,2700.9,2700.8,3.2078]
[1739514619215,4.506,2701.5,2700.8,3.94819]
[1739514619406,2.9142415,2701.3,2700.8,3.2078]
[1739514619612,0.74038,2700.9,2700.8,3.2078]
[1739514624612,4.6484415,2701.0,2700.5,3.2078]
[1739514624813,0.74046,2700.6,2700.5,3.2078]
[1739514625211,4.5042415,2700.7,2700.4,0.5421]
[1739514625418,1.29959,2700.5,2700.4,0.5421]
[1739514625818,0.74054,2700.3,2700.2,0.5475]
[1739514626122,0.74054,2700.3,2700.2,1.1124]
[1739514629511,0.5591,2700.5,2700.2,1.1124]
[1739514629715,0.74054,2700.4,2700.2,1.1124]
[1739514630113,5.0675415,2700.7,2700.2,1.1124]
[1739514630317,0.74054,2700.3,2700.2,1.1124]
[1739514630719,0.74053,2700.4,2700.2,1.1124]
[1739514630915,1.59,2700.7,2700.2,1.1124]
[1739514631120,1.59,2700.7,2700.4,3.94831]
[1739514631321,1.59,2700.7,2700.4,3.2078]
[1739514631519,0.74043,2700.8,2700.5,0.74048]
[1739514631722,0.74044,2700.7,2700.5,0.74048]
[1739514632123,1.59,2700.9,2700.4,3.2078]
[1739514632328,0.74034,2701.1,2700.8,3.2078]
[1739514632523,0.74034,2701.1,2700.9,1.1273]
[1739514632717,0.74034,2701.1,2700.9,1.7087]
[1739514634827,0.74031,2701.2,2700.9,1.7087]
[1739514635729,0.74031,2701.2,2701.1,3.2078]
[1739514636529,3.6545415,2701.3,2701.1,3.2078]
[1739514636819,2.9142415,2701.3,2701.1,3.2078]
[1739514637218,0.7403,2701.2,2701.1,3.2078]
[1739514637419,3.6545315,2701.3,2701.1,3.2078]
[1739514637927,0.7403,2701.2,2701.1,3.2078]
[1739514642525,0.74038,2700.9,2700.8,3.2078]
[1739514642726,0.5493,2701.2,2700.6,0.548]
[1739514642727,0.74043,2700.7,2700.6,0.548]
[1739514642928,0.74046,2700.6,2700.5,3.7888]
[1739514643229,1.1214,2700.8,2700.1,3.67659]
[1739514643230,2.9142415,2700.7,2700.2,3.7558]
[1739514643527,0.74054,2700.3,2700.2,3.2078]
[1739514644523,2.9142415,2700.4,2700.2,3.2078]
[1739514644731,3.6547715,2700.4,2700.2,3.2078]
[1739514646434,0.74053,2700.4,2700.2,3.2078]
[1739514647235,2.9142415,2700.7,2700.2,3.2078]
[1739514647429,2.33047,2700.6,2700.5,3.2078]
[1739514647934,0.74043,2700.7,2700.5,3.2078]
[1739514648135,1.59,2700.9,2700.5,3.2078]
[1739514648334,0.74045,2700.7,2700.5,3.2078]
[1739514648533,0.74042,2700.8,2700.5,3.94829]
[1739514648835,4.5042415,2701.0,2700.6,0.74045]
[1739514649133,0.74039,2700.9,2700.8,3.2078]
[1739514651130,5.2446115,2701.0,2700.8,3.2078]
[1739514651330,5.2446115,2701.0,2700.9,0.5399]
[1739514653740,0.74038,2700.9,2700.8,3.2078]
[1739514657943,1.29738,2700.9,2700.8,3.2078]
[1739514658839,0.74046,2700.6,2700.5,3.7779]
[1739514659038,0.74054,2700.3,2700.2,3.2078]
[1739514659239,0.74054,2700.3,2700.2,3.7724]
[1739514659537,0.74054,2700.3,2700.2,3.2078]
[1739514659738,2.1373,2700.6,2700.0,0.5861]
[1739514659944,0.7406,2700.1,2700.0,0.5861]
[1739514660144,2.9142415,2700.4,2699.9,3.7724]
[1739514660340,0.74063,2700.0,2699.9,3.7724]
[1739514660743,0.74061,2700.1,2699.9,3.7724]
[1739514661448,1.59,2700.2,2699.9,3.7724]
[1739514661645,1.59,2700.2,2699.9,4.51304]
[1739514662645,1.59,2700.2,2700.0,0.5827]
[1739514663150,2.33051,2700.5,2700.1,0.74058]
[1739514663359,2.33051,2700.5,2700.3,3.2078]
[1739514663946,1.1419,2700.6,2700.3,3.7491]
[1739514663947,2.1373,2700.6,2700.3,3.7491]
[1739514664251,0.7405,2700.5,2700.3,3.7491]
[1739514664453,0.7405,2700.5,2700.4,0.5808]
[1739514667046,4.5042415,2700.7,2700.3,3.7491]
[1739514667354,0.74052,2700.4,2700.3,3.2078]
[1739514669246,4.5042415,2700.7,2700.3,3.2078]
[1739514669454,0.74051,2700.5,2700.3,3.2078]
[1739514669651,0.74052,2700.4,2700.3,3.2078]
[1739514670756,4.5042415,2700.7,2700.3,3.2078]
[1739514670950,0.74048,2700.6,2700.3,3.94833]
[1739514671358,1.1379,2700.9,2700.3,3.2078]
[1739514671555,0.74049,2700.5,2700.3,3.94833]
[1739514671752,0.74048,2700.6,2700.3,3.94833]
[1739514671947,0.74048,2700.6,2700.3,3.2078]
[1739514672152,0.74048,2700.6,2700.4,0.74051]
[1739514672353,0.74048,2700.6,2700.5,0.5866]
[1739514672556,0.74045,2700.7,2700.5,1.1806]
[1739514672753,0.74045,2700.7,2700.6,0.5644]
[1739514673358,0.74052,2700.4,2700.3,3.2078]
[1739514674256,0.74054,2700.3,2700.2,0.5644]
[1739514674460,0.74057,2700.2,2700.1,0.594]
[1739514675562,0.7406,2700.1,2700.0,3.7967]
[1739514675757,1.2796,2700.1,2700.0,3.7967]
[1739514676753,1.2796,2700.1,2700.0,3.2078]
[1739514677152,4.1938415,2700.1,2700.0,3.2078]
[1739514677453,0.74065,2699.9,2699.8,0.00555453]
[1739514677759,3.94845,2699.9,2699.8,0.00555453]
[1739514679264,0.74065,2699.9,2699.8,0.00555453]
[1739514680271,1.591,2700.1,2699.8,0.00555453]
[1739514680563,0.74065,2699.9,2699.8,0.00555453]
[1739514681664,1.591,2700.1,2699.8,0.00555453]
[1739514681869,0.74063,2700.0,2699.8,1.71625453]
[1739514682071,0.74065,2699.9,2699.8,1.71625453]
[1739514682466,0.74064,2700.0,2699.8,1.71625453]
[1739514682861,2.33161,2700.1,2699.8,1.71625453]
[1739514683067,1.591,2700.1,2699.8,2.45692453]
[1739514684071,2.3316,2700.1,2699.8,2.45692453]
[1739514684268,0.7406,2700.1,2699.8,2.45692453]
[1739514684667,0.74059,2700.2,2699.8,2.45692453]
[1739514684868,0.7406,2700.1,2699.8,2.45692453]
[1739514685166,4.7988,2700.3,2699.8,1.71625453]
[1739514685370,0.74065,2699.9,2699.8,1.71625453]
[1739514686267,5.949,2700.3,2699.8,1.71625453]
[1739514686464,0.74063,2700.0,2699.8,1.71625453]
[1739514687374,5.949,2700.3,2699.8,1.71625453]
[1739514687670,0.74064,2700.0,2699.8,1.71625453]
[1739514690074,5.949,2700.3,2699.8,1.71625453]
[1739514690271,0.74065,2699.9,2699.8,1.71625453]
[1739514691675,0.74064,2700.0,2699.8,2.45693453]
[1739514692070,0.74065,2699.9,2699.8,1.71625453]
[1739514694177,5.949,2700.3,2699.8,1.71625453]
[1739514694481,0.74064,2700.0,2699.8,2.45693453]
[1739514695178,0.74062,2700.1,2699.9,0.74065]
[1739514695480,0.74065,2699.9,2699.8,1.71625453]
[1739514697479,0.74064,2700.0,2699.8,2.45692453]
[1739514697675,0.74065,2699.9,2699.8,2.45692453]
[1739514697875,0.74065,2699.9,2699.8,1.71625453]
[1739514698783,2.33165,2699.9,2699.8,0.00555453]
[1739514703380,2.79958222,2699.9,2699.8,0.00555453]
[1739514711672,1.20858222,2699.9,2699.8,0.00555453]
[1739514711879,2.33165,2699.9,2699.8,0.00555453]
[1739514716780,0.74065,2699.9,2699.8,0.00555453]
[1739514719876,0.74065,2700.0,2699.8,0.00555453]
[1739514720176,0.74065,2699.9,2699.8,0.00555453]
[1739514721386,0.74065,2699.9,2699.8,0.59265453]
[1739514721587,0.74065,2699.9,2699.8,1.15465453]
[1739514722989,0.74065,2699.9,2699.8,0.59265453]
[1739514726387,0.74065,2700.0,2699.8,0.59265453]
[1739514726582,0.74062,2700.1,2699.9,0.5492]
[1739514726789,0.74062,2700.1,2700.0,0.5843]
[1739514729091,0.74059,2700.2,2700.0,1.32492]
[1739514729288,2.9142415,2700.4,2700.1,3.2078]
[1739514729489,5.2457715,2700.4,2700.2,0.577]
[1739514729795,1.30410976,2700.4,2700.2,0.577]
[1739514729994,1.30410976,2700.4,2700.3,0.5467]
[1739514730396,2.04462976,2700.4,2700.3,0.5467]
[1739514731601,0.74052,2700.4,2700.3,0.5467]
[1739514732396,1.59,2700.8,2700.3,0.5467]
[1739514732595,2.33041,2700.8,2700.5,3.2078]
[1739514732901,1.59,2700.8,2700.6,0.5521]
[1739514733399,2.33042,2700.8,2700.7,0.5458]
[1739514733798,6.12167058,2700.9,2700.7,0.5458]
[1739514733996,0.74041,2700.8,2700.7,0.5458]
[1739514734403,1.59,2701.1,2700.7,0.5458]
[1739514734599,4.06927058,2701.2,2700.8,3.2078]
[1739514734804,1.59,2701.1,2700.8,3.2078]
[1739514735007,0.74036,2701.0,2700.8,3.2078]
[1739514735604,2.33034,2701.1,2700.8,3.2078]
[1739514736006,0.74036,2701.0,2700.8,3.2078]
[1739514736297,1.59,2701.1,2700.8,3.2078]
[1739514736498,0.74038,2701.0,2700.8,3.2078]
[1739514736803,2.33034,2701.1,2700.8,3.2078]
[1739514737503,2.33034,2701.1,2700.8,3.9482]
[1739514737703,0.74034,2701.1,2700.8,3.9482]
[1739514738403,0.74034,2701.1,2700.8,4.2476743]
[1739514738598,0.74034,2701.1,2700.8,3.2078]
[1739514739102,0.74034,2701.1,2700.8,3.94819]
[1739514740599,3.2078,2701.3,2700.8,3.2078]
[1739514740812,0.7403,2701.2,2700.9,0.74036]
[1739514740999,0.7403,2701.2,2700.8,3.2078]
[1739514741302,1.59,2701.3,2700.8,3.9482]
[1739514741602,0.74036,2701.0,2700.8,3.504791]
[1739514742200,2.91387058,2701.2,2700.8,3.504791]
[1739514742402,0.74038,2700.9,2700.8,3.504791]
[1739514742906,0.74038,2700.9,2700.8,3.2078]
[1739514746311,2.91387058,2701.2,2700.8,3.9482]
[1739514746507,0.74035,2701.1,2700.8,3.9482]
[1739514747404,0.74035,2701.1,2700.8,3.2078]
[1739514747604,0.74031,2701.2,2701.0,0.74034]
[1739514747804,1.59,2701.4,2701.1,0.5859]
[1739514747805,0.74028,2701.3,2701.1,0.5859]
[1739514748005,0.74027,2701.3,2701.2,1.115]
[1739514750411,0.74027,2701.3,2701.2,0.5743]
[1739514750717,0.74035,2701.0,2700.9,0.5394]
[1739514750918,0.74035,2701.0,2700.9,1.1002]